fUSD/lending_fUSD_20260217
["ID","MTS","AMOUNT","RATE_DAILY","PERIOD"]
[405850444,1771360252755,-250.0,0.00015224,2]
[405850445,1771360252765,-250.0,0.00015224,2]
[405850446,1771360252775,-250.0,0.00015224,2]
[405850447,1771360252784,-250.0,0.00015224,2]
[405850448,1771360252794,-250.0,0.00015224,2]
[405850449,1771360252802,-151.0,0.00015224,2]
[405850450,1771360252812,-250.0,0.00015224,2]
[405850451,1771360252821,-156.587,0.00015224,2]
[405850452,1771360252830,-250.0,0.00015224,2]
[405850453,1771360252839,-250.0,0.00015224,2]
[405850454,1771360252848,-162.380719,0.00015224,2]
[405850455,1771360252858,-431.2849758,0.00015224,2]
[405850456,1771360252866,-250.0,0.00015224,2]
[405850457,1771360252876,-159.19814613,0.00015224,2]
[405850458,1771360252886,-250.0,0.00015224,2]
[405850459,1771360252895,-250.0,0.00015224,2]
[405850460,1771360252904,-250.0,0.00015224,2]
[405850461,1771360252914,-250.0,0.00015224,2]
[405850462,1771360252925,-250.0,0.00015224,2]
[405850463,1771360252935,-250.0,0.00015224,2]
[405850464,1771360252945,-250.0,0.00015224,2]
[405850465,1771360252956,-250.0,0.00015224,2]
[405850466,1771360252967,-250.0,0.00015224,2]
[405850467,1771360252977,-250.0,0.00015224,2]
[405850468,1771360252987,-250.0,0.00015224,2]
[405850469,1771360252998,-250.0,0.00015224,2]
[405850470,1771360253008,-693.3919763,0.00015224,2]
[405850471,1771360253018,-250.0,0.00015224,2]
[405850472,1771360253027,-250.0,0.00015224,2]
[405850473,1771360253036,-299.40346672,0.00015224,2]
[405850474,1771360253046,-277.35679052,0.00015224,2]
[405850475,1771360253055,-250.0,0.00015224,2]
[405850476,1771360253065,-250.0,0.00015224,2]
[405850477,1771360253074,-250.0,0.00015224,2]
[405850478,1771360253083,-250.0,0.00015224,2]
[405850479,1771360253092,-250.0,0.00015224,2]
[405850480,1771360253102,-250.0,0.00015224,2]
[405850481,1771360253111,-250.0,0.00015224,2]
[405850482,1771360253121,-250.0,0.00015224,2]
[405850483,1771360253130,-250.0,0.00015224,2]
[405850484,1771360253140,-250.0,0.00015224,2]
[405850485,1771360253149,-250.0,0.00015224,2]
[405850486,1771360253159,-721.12765535,0.00015224,2]
[405850487,1771360253169,-151.0,0.00015279,2]
[405850488,1771360253179,-719.04747942,0.00015279,2]
[405850489,1771360253188,-1517.64,0.000153,2]
[405850490,1771360253198,-151.0,0.00015334,2]
[405850491,1771360253207,-745.65223616,0.00015334,2]
[405850492,1771360253217,-151.0,0.00015389,2]
[405850493,1771360253226,-773.2413689,0.00015389,2]
[405850494,1771360253236,-509.61038486,0.000154,2]
[405850495,1771360253246,-151.0,0.00015444,2]
[405850496,1771360253255,-801.85129955,0.00015444,2]
[405850497,1771360253265,-1000.0,0.00015451,7]
[405850498,1771360253274,-3500.0,0.0001546,2]
[405850499,1771360253283,-151.0,0.00015499,2]
[405850500,1771360253293,-831.51979763,0.00015499,2]
[405850501,1771360253302,-500.0,0.00015516,2]
[405850502,1771360253311,-360.43974274,0.00015516,2]
[405850503,1771360253321,-2000.0,0.00015516,2]
[405850504,1771360253332,-1120.78233815,0.00015516,2]
[405850505,1771360253344,-2000.0,0.00015516,2]
[405850506,1771360253353,-2000.0,0.00015516,2]
[405850507,1771360253362,-2000.0,0.00015516,2]
[405850508,1771360253372,-1508.47777759,0.00015516,2]
[405850509,1771360253382,-158.35387756,0.00015516,2]
[405850510,1771360253392,-2000.0,0.00015516,2]
[405850511,1771360253403,-1219.64567907,0.00015516,2]
[405850512,1771360253413,-1929.20363046,0.00015516,2]
[405850513,1771360253422,-404.497183,0.00015538,7]
[405850514,1771360253432,-151.0,0.00015554,2]
[405850515,1771360253442,-862.28603014,0.00015554,2]
[405850516,1771360253452,-150.0,0.00015555,2]
[405850517,1771360253462,-151.0,0.00015609,2]
[405850518,1771360253471,-894.19061326,0.00015609,2]
[405850519,1771360253481,-150.0,0.0001561,2]
[405850520,1771360253491,-200.0,0.00015647,2]
[405850521,1771360253501,-481.75678797,0.00015648,2]
[405850522,1771360253510,-481.75678796,0.00015648,2]
[405850523,1771360253520,-151.0,0.00015664,2]
[405850524,1771360253529,-927.27566595,0.00015664,2]
[405850525,1771360253539,-150.0,0.00015665,2]
[405850526,1771360253549,-151.0,0.00015719,2]
[405850527,1771360253558,-961.58486559,0.00015719,2]
[405850528,1771360253568,-250.53819001,0.00015719,2]
[405850529,1771360253578,-173.0767049,0.0001573,2]
[405850530,1771360253588,-4479.21,0.00015753,2]
[405850531,1771360253597,-200.0,0.00015772,2]
[405850532,1771360253606,-181.08010149,0.00015772,2]
[405850533,1771360253616,-771.01748645,0.00015772,2]
[405850534,1771360253625,-287.61899177,0.00015772,2]
[405850535,1771360253636,-151.0,0.00015774,2]
[405850536,1771360253646,-997.16350561,0.00015774,2]
[405850537,1771360253656,-341.11,0.00015783,2]
[405850538,1771360253665,-288.0,0.00015796,2]
[405850539,1771360253675,-2245.73805852,0.00015807,2]
[405850540,1771360253684,-151.0,0.00015829,2]
[405850541,1771360253693,-151.0,0.00015884,2]
[405850542,1771360253703,-150.0,0.000159,2]
[405850543,1771360253712,-150.0,0.000159,2]
[405850544,1771360253722,-150.0,0.000159,2]
[405850545,1771360253731,-150.0,0.000159,2]
[405850546,1771360253741,-150.0,0.000159,2]
[405850547,1771360253751,-150.0,0.000159,2]
[405850548,1771360253760,-150.0,0.000159,2]
[405850549,1771360253770,-341.11,0.00015903,2]
[405850550,1771360253779,-151.0,0.00015939,2]
[405850551,1771360253789,-5000.0,0.0001596,2]
[405850552,1771360253798,-151.0,0.00015994,2]
[405850553,1771360253807,-418.83903334,0.00016,2]
[405850554,1771360253817,-276.734435,0.00016,2]
[405850555,1771360253827,-1494.73225771,0.00016008,2]
[405850556,1771360253836,-341.11,0.00016022,2]
[405850557,1771360253846,-481.75678797,0.00016039,2]
[405850558,1771360253855,-2052.7,0.00016064,2]
[405850559,1771360253865,-2500.0,0.00016064,2]
[405850560,1771360253875,-1007.7222609,0.00016064,2]
[405850561,1771360253886,-1787.66016397,0.00016064,2]
[405850562,1771360253895,-960.3517219,0.00016064,2]
[405850563,1771360253905,-2500.0,0.00016064,2]
[405850564,1771360253915,-2000.0,0.00016082,2]
[405850565,1771360253924,-9999.99,0.00016116,2]
[405850566,1771360253934,-15296.93137855,0.00016142,2]
[405850567,1771360253944,-237.17,0.00016187,2]
[405850568,1771360253954,-150.0,0.000162,2]
[405850569,1771360253964,-5000.00387893,0.000162,5]
[405850570,1771360253974,-5115.82431981,0.00016286,2]
[405850571,1771360253984,-187.78006525,0.0001632,2]
[405850572,1771360253993,-799.54513345,0.0001632,2]
[405850573,1771360254002,-298.26089446,0.0001632,2]
[405850574,1771360254012,-200.0,0.0001634,2]
[405850575,1771360254022,-500.0,0.00016356,2]
[405850576,1771360254031,-500.0,0.00016356,2]
[405850577,1771360254041,-2888.0,0.000164,2]
[405850578,1771360254050,-237.17,0.00016414,2]
[405850579,1771360254060,-3354.94878458,0.00016437,2]
[405850580,1771360254070,-2789.9,0.00016438,2]
[405850581,1771360254080,-887.51,0.00016438,2]
[405850582,1771360254090,-900.0,0.00016438,2]
[405850583,1771360254100,-4479.21,0.00016438,2]
[405850584,1771360254110,-151.02975848,0.00016438,2]
[405850585,1771360254120,-150.0,0.000165,2]
[405850586,1771360254130,-2000.0,0.000165,2]
[405850587,1771360254140,-215.37,0.00016505,2]
[405850588,1771360254150,-361.51972399,0.000166,2]
[405850589,1771360254160,-1035.74923491,0.00016612,2]
[405850590,1771360254170,-457.49810709,0.00016612,2]
[405850591,1771360254180,-237.17,0.00016641,2]
[405850592,1771360254190,-1088.37215301,0.00016714,2]
[405850593,1771360254200,-473.31058807,0.00016714,2]
[405850594,1771360254210,-150.0,0.000168,2]
[405850595,1771360254220,-420.62043768,0.0001683,2]
[405850596,1771360254229,-194.72792766,0.00016868,2]
[405850597,1771360254238,-829.12830338,0.00016868,2]
[405850598,1771360254248,-309.29654756,0.00016868,2]
[405850599,1771360254258,-215.36125356,0.00016869,2]
[405850600,1771360254268,-150.248,0.00016903,2]
[405850601,1771360254277,-1275.0,0.00016903,2]
[405850602,1771360254287,-1220.627,0.00016903,2]
[405850603,1771360254296,-5973.0,0.00016903,2]
[405850604,1771360254306,-1320.0,0.00016903,2]
[405850605,1771360254316,-2460.828,0.00016903,2]
[405850606,1771360254326,-300.0,0.00017,2]
[405850607,1771360254338,-2000.0,0.00017,2]
[405850608,1771360254347,-1034718.3065828,0.00017,2]
[405850609,1771360254358,-445.585732,0.00017,2]
[405850610,1771360254367,-445.585732,0.00017,2]
[405850611,1771360254378,-445.585732,0.00017,2]
[405850612,1771360254388,-445.585732,0.00017,2]
[405850613,1771360254397,-151.0,0.00017,2]
[405850614,1771360254408,-1000.0,0.00017,2]
[405850615,1771360254417,-1000.0,0.00017,2]
[405850616,1771360254427,-1000.0,0.00017,2]
[405850617,1771360254437,-1000.0,0.00017,2]
[405850618,1771360254446,-1000.0,0.00017,2]
[405850619,1771360254456,-1000.0,0.00017,2]
[405850620,1771360254466,-1573.195363,0.00017,2]
[405850621,1771360254476,-1573.195363,0.00017,2]
[405850622,1771360254485,-1573.195363,0.00017,2]
[405850623,1771360254494,-1573.195363,0.00017,2]
[405850624,1771360254503,-151.0,0.00017,2]
[405850625,1771360254513,-276.993442,0.00017,2]
[405850626,1771360254523,-276.993442,0.00017,2]
[405850627,1771360254533,-276.993442,0.00017,2]
[405850628,1771360254544,-222.568912,0.00017,2]
[405850629,1771360254554,-276.993442,0.00017,2]
[405850630,1771360254565,-222.568912,0.00017,2]
[405850631,1771360254574,-222.568912,0.00017,2]
[405850632,1771360254584,-222.568912,0.00017,2]
[405850633,1771360254593,-151.0,0.00017,2]
[405850634,1771360254602,-160.0,0.0001704,2]
[405850635,1771360254610,-1605.13930028,0.00017096,2]
[405850636,1771360254619,-2052.7,0.00017099,2]
[405850637,1771360254629,-150.0,0.000171,2]
[405850638,1771360254640,-196837.22809,0.000171,2]
[405850639,1771360254650,-820.0,0.000171,2]
[405850640,1771360254659,-1605.13930028,0.00017178,2]
[405850641,1771360254669,-150.0,0.00017202,2]
[405850642,1771360254679,-350.0,0.00017206,2]
[405850643,1771360254688,-1605.13930028,0.00017233,2]
[405850644,1771360254698,-1000.0,0.00017233,2]
[405850645,1771360254707,-1000.0,0.0001726,2]
[405850646,1771360254717,-1000.0,0.00017281,2]
[405850647,1771360254726,-350.0,0.00017303,2]
[405850648,1771360254735,-1000.0,0.00017303,2]
[405850649,1771360254744,-1605.13930028,0.00017315,2]
[405850650,1771360254754,-150.0,0.00017339,2]
[405850651,1771360254763,-1000.0,0.00017341,2]
[405850652,1771360254773,-150.0,0.00017346,2]
[405850653,1771360254785,-150.0,0.00017369,2]
[405850654,1771360254869,-1605.13930028,0.0001737,2]
[405850655,1771360254879,-1000.0,0.00017374,2]
[405850656,1771360254888,-1000.0,0.00017387,2]
[405850657,1771360254897,-150.0,0.00017391,2]
[405850658,1771360254907,-1000.0,0.00017397,2]
[405850659,1771360254916,-150.0,0.000174,2]
[405850660,1771360254926,-2555.4951848,0.000174,5]
[405850661,1771360254936,-150.0,0.00017402,2]
[405850662,1771360254945,-1000.0,0.00017409,2]
[405850663,1771360254954,-201.93286099,0.00017416,2]
[405850664,1771360254965,-171.52852621,0.00017416,2]
[405850665,1771360254976,-320.74051982,0.00017416,2]
[405850666,1771360254987,-808.0,0.00017419,2]
[405850667,1771360254996,-1000.0,0.00017421,2]
[405850668,1771360255006,-1000.0,0.00017423,2]
[405850669,1771360255015,-1000.0,0.00017426,2]
[405850670,1771360255024,-1000.0,0.00017431,2]
[405850671,1771360255034,-1000.0,0.00017451,2]
[405850672,1771360255044,-2000.0,0.00017452,7]
[405850673,1771360255053,-1605.13930028,0.00017452,2]
[405850674,1771360255062,-1000.0,0.00017457,2]
[405850675,1771360255072,-1000.0,0.00017458,2]
[405850676,1771360255081,-808.0,0.00017459,2]
[405850677,1771360255091,-1000.0,0.00017471,2]
[405850678,1771360255101,-808.0,0.00017476,2]
[405850679,1771360255112,-3994.0,0.000175,2]
[405850680,1771360255122,-1605.13930028,0.00017507,2]
[405850681,1771360255132,-1000.0,0.00017507,2]
[405850682,1771360255142,-150.0,0.00017509,2]
[405850683,1771360255151,-1000.0,0.00017511,2]
[405850684,1771360255162,-151.0,0.00017531,2]
[405850685,1771360255171,-808.0,0.00017531,2]
[405850686,1771360255184,-1000.0,0.00017534,2]
[405850687,1771360255194,-1000.0,0.00017542,2]
[405850688,1771360255204,-1000.0,0.00017542,2]
[405850689,1771360255214,-1000.0,0.00017547,2]
[405850690,1771360255224,-150.0,0.00017552,2]
[405850691,1771360255234,-189.18339057,0.00017554,2]
[405850692,1771360255244,-150.0,0.00017573,2]
[405850693,1771360255254,-808.0,0.00017581,2]
[405850694,1771360255264,-1000.0,0.00017589,2]
[405850695,1771360255274,-1605.13930028,0.00017589,2]
[405850696,1771360255283,-1000.0,0.000176,2]
[405850697,1771360255292,-11400.0,0.000176,6]
[405850698,1771360255303,-800.0,0.000176,6]
[405850699,1771360255313,-1000.0,0.00017605,2]
[405850700,1771360255324,-1000.0,0.0001762,2]
[405850701,1771360255338,-1000.0,0.00017633,2]
[405850702,1771360255349,-1000.0,0.00017638,2]
[405850703,1771360255360,-10846.14923654,0.0001764,2]
[405850704,1771360255371,-1605.13930028,0.00017644,2]
[405850705,1771360255380,-1000.0,0.00017649,2]
[405850706,1771360255389,-1000.0,0.00017652,2]
[405850707,1771360255399,-1000.0,0.00017656,2]
[405850708,1771360255409,-1000.0,0.00017663,2]
[405850709,1771360255419,-1000.0,0.0001767,2]
[405850710,1771360255430,-1000.0,0.00017672,2]
[405850711,1771360255439,-150.0,0.00017684,2]
[405850712,1771360255449,-1000.0,0.0001769,2]
[405850713,1771360255458,-2052.7,0.00017698,2]
[405850714,1771360255467,-150.0,0.000177,2]
[405850715,1771360255477,-784.32813885,0.000177,2]
[405850716,1771360255487,-11400.0,0.000177,6]
[405850717,1771360255497,-800.0,0.000177,6]
[405850718,1771360255507,-403.0,0.000177,5]
[405850719,1771360255516,-1000.0,0.00017704,2]
[405850720,1771360255525,-150.0,0.00017711,2]
[405850721,1771360255534,-808.0,0.00017721,2]
[405850722,1771360255544,-500.0,0.00017726,7]
[405850723,1771360255553,-1605.13930028,0.00017726,2]
[405850724,1771360255563,-1000.0,0.00017731,2]
[405850725,1771360255573,-350.0,0.00017735,2]
[405850726,1771360255583,-1000.0,0.00017738,2]
[405850727,1771360255592,-150.0,0.00017745,2]
[405850728,1771360255602,-150.0,0.00017748,2]
[405850729,1771360255611,-808.0,0.0001776,2]
[405850730,1771360255620,-166.11141928,0.00017773,2]
[405850731,1771360255630,-1000.0,0.00017775,2]
[405850732,1771360255639,-150.0,0.00017776,2]
[405850733,1771360255648,-1605.13930028,0.00017781,2]
[405850734,1771360255657,-151.0,0.00017787,5]
[405850735,1771360255667,-1000.0,0.000178,2]
[405850736,1771360255683,-11400.0,0.000178,6]
[405850737,1771360255692,-800.0,0.000178,6]
[405850738,1771360255701,-1000.0,0.00017804,2]
[405850739,1771360255711,-444.64,0.00017808,2]
[405850740,1771360255720,-500.0,0.00017808,2]
[405850741,1771360255729,-500.0,0.00017808,2]
[405850742,1771360255740,-500.0,0.00017808,2]
[405850743,1771360255750,-450.0,0.00017808,2]
[405850744,1771360255760,-500.0,0.00017808,2]
[405850745,1771360255771,-500.0,0.00017808,2]
[405850746,1771360255781,-500.0,0.00017808,2]
[405850747,1771360255793,-478.28311124,0.00017808,2]
[405850748,1771360255803,-500.0,0.00017808,2]
[405850749,1771360255813,-500.0,0.00017808,2]
[405850750,1771360255824,-500.0,0.00017808,2]
[405850751,1771360255832,-500.0,0.00017808,2]
[405850752,1771360255842,-500.0,0.00017808,2]
[405850753,1771360255853,-500.0,0.00017808,2]
[405850754,1771360255863,-500.0,0.00017808,2]
[405850755,1771360255873,-500.0,0.00017808,2]
[405850756,1771360255882,-500.0,0.00017808,2]
[405850757,1771360255892,-500.0,0.00017808,2]
[405850758,1771360255902,-500.0,0.00017808,2]
[405850759,1771360255912,-500.0,0.00017808,2]
[405850760,1771360255923,-300.0,0.00017808,2]
[405850761,1771360255932,-1000.0,0.00017808,2]
[405850762,1771360255942,-800.0,0.00017808,2]
[405850763,1771360255953,-311.844149,0.00017808,2]
[405850764,1771360255964,-311.844149,0.00017808,2]
[405850765,1771360255975,-311.844149,0.00017808,2]
[405850766,1771360255986,-311.844149,0.00017808,2]
[405850767,1771360255996,-250.0,0.00017808,20]
[405850768,1771360256006,-250.0,0.00017808,20]
[405850769,1771360256016,-250.0,0.00017808,20]
[405850770,1771360256025,-250.0,0.00017808,20]
[405850771,1771360256035,-250.0,0.00017808,20]
[405850772,1771360256043,-250.0,0.00017808,20]
[405850773,1771360256055,-250.0,0.00017808,20]
[405850774,1771360256064,-250.0,0.00017808,20]
[405850775,1771360256073,-250.0,0.00017808,20]
[405850776,1771360256084,-250.0,0.00017808,20]
[405850777,1771360256096,-250.0,0.00017808,20]
[405850778,1771360256106,-250.0,0.00017808,20]
[405850779,1771360256116,-250.0,0.00017808,20]
[405850780,1771360256127,-1000.0,0.00017809,2]
[405850781,1771360256137,-1000.0,0.00017812,2]
[405850782,1771360256147,-2000.0,0.0001782,2]
[405850783,1771360256157,-2000.0,0.0001782,2]
[405850784,1771360256168,-1000.0,0.0001783,2]
[405850785,1771360256178,-350.0,0.00017832,3]
[405850786,1771360256187,-1000.0,0.00017845,2]
[405850787,1771360256198,-1000.0,0.00017852,2]
[405850788,1771360256208,-808.0,0.00017855,2]
[405850789,1771360256219,-200.0,0.00017855,2]
[405850790,1771360256230,-500.0,0.00017856,2]
[405850791,1771360256239,-200.0,0.00017856,2]
[405850792,1771360256249,-200.0,0.00017856,2]
[405850793,1771360256259,-150.0,0.0001786,2]
[405850794,1771360256271,-1605.13930028,0.00017863,2]
[405850795,1771360256281,-1000.0,0.00017864,2]
[405850796,1771360256291,-350.0,0.00017867,2]
[405850797,1771360256301,-1000.0,0.00017878,2]
[405850798,1771360256317,-808.0,0.00017879,2]
[405850799,1771360256328,-1000.0,0.00017884,2]
[405850800,1771360256340,-1213.35576391,0.00017885,2]
[405850801,1771360256352,-150.0,0.00017891,2]
[405850802,1771360256362,-11859.0,0.000179,6]
[405850803,1771360256372,-1200.0,0.000179,6]
[405850804,1771360256381,-8640.54324281,0.000179,2]
[405850805,1771360256391,-4341.43590003,0.000179,2]
[405850806,1771360257153,-150.24181775,9.917e-05,2]
[405850807,1771360257476,-350.63295588,9.917e-05,2]
[405850808,1771360257486,-153.36704412,0.00016903,2]
[405850809,1771360257778,-1091.26195588,0.00016903,2]
[405850810,1771360257788,-250.0,0.00017808,20]
[405850811,1771360257799,-250.0,0.00017808,20]
[405850812,1771360257809,-250.0,0.00017808,20]
[405850813,1771360257819,-250.0,0.00017808,20]
[405850814,1771360257828,-250.0,0.00017808,20]
[405850815,1771360257838,-250.0,0.00017808,20]
[405850816,1771360257847,-250.0,0.00017808,20]
[405850817,1771360257858,-250.0,0.00017808,20]
[405850818,1771360257867,-250.0,0.00017808,20]
[405850819,1771360257877,-250.0,0.00017808,20]
[405850820,1771360257887,-250.0,0.00017808,20]
[405850821,1771360257897,-250.0,0.00017808,20]
[405850822,1771360257907,-250.0,0.00017808,20]
[405850823,1771360257917,-250.0,0.00017808,20]
[405850824,1771360257927,-250.0,0.00017808,20]
[405850825,1771360257939,-250.0,0.00017808,20]
[405850826,1771360257949,-250.0,0.00017808,20]
[405850827,1771360257959,-250.0,0.00017808,20]
[405850828,1771360257969,-774.38841978,0.000179,2]
[405850829,1771360257979,-2222.86560409,0.000179,2]
[405850830,1771360257989,-297.0400421,0.000179,2]
[405850831,1771360257999,-1000.0,0.00017901,2]
[405850832,1771360258009,-1000.0,0.00017904,2]
[405850833,1771360258019,-1000.0,0.00017906,2]
[405850834,1771360258030,-150.0,0.0001793,2]
[405850835,1771360258040,-350.0,0.00017934,2]
[405850836,1771360258049,-338.15045112,0.00017945,2]
[405850839,1771360367220,10000.01,6.6e-05,2]
[405850840,1771360367253,10000.01,6.6e-05,2]
[405850841,1771360367287,10000.01,6.6e-05,2]
[405850842,1771360367320,10000.01,6.6e-05,2]
[405850843,1771360367353,10000.01,6.6e-05,2]
[405850844,1771360367388,10000.01,6.6e-05,2]
[405850845,1771360367423,10000.01,6.6e-05,2]
[405850846,1771360383903,-150.0,6.599e-05,2]
[405850847,1771360434976,-10000.01,6.6e-05,2]
[405850848,1771360440993,-10000.01,6.6e-05,2]
[405850849,1771360444153,-300.0,6.599e-05,2]
[405850850,1771360474320,-10000.01,6.6e-05,2]
[405850851,1771360480391,-10000.01,6.6e-05,2]
[405850852,1771360513495,-1200.0,6.599e-05,2]
[405850853,1771360513524,-300.0,6.599e-05,2]
[405850854,1771360563173,150.0,6.599e-05,2]
[405850856,1771360664462,-9850.01,6.6e-05,2]
[405850857,1771360664642,-10000.01,6.6e-05,2]
[405850858,1771360664755,-10000.01,6.6e-05,2]
[405850859,1771360664898,-10000.01,6.6e-05,2]
[405850860,1771360665735,-10000.01,6.6e-05,2]
[405850861,1771360665749,-10000.01,6.6e-05,2]
[405850862,1771360665774,-10000.01,6.6e-05,2]
[405850863,1771360665788,-10000.01,6.6e-05,2]
[405850864,1771360667503,-10000.01,6.6e-05,2]
[405850865,1771360670442,-10000.01,6.6e-05,2]
[405850866,1771360670608,-10000.01,6.6e-05,2]
[405850867,1771360670714,-10000.01,6.6e-05,2]
[405850868,1771360670818,-10000.01,6.6e-05,2]
[405850869,1771360670927,-10000.01,6.6e-05,2]
[405850870,1771360671059,-10000.01,6.6e-05,2]
[405850871,1771360671173,-10000.01,6.6e-05,2]
[405850872,1771360675445,-150.0,6.6e-05,2]
[405850873,1771360764971,-300.0,6.599e-05,2]
[405850874,1771360765001,-281.41,6.6e-05,2]
[405850875,1771360765028,-3826.83388884,6.6e-05,2]
[405850876,1771360765056,-250.0,6.65e-05,2]
[405850877,1771360765146,-683.52222232,6.7e-05,2]
[405850878,1771360770856,-1116.47777768,6.7e-05,2]
[405850879,1771360770887,-600.0,6.7e-05,2]
[405850880,1771360770944,-6567.05444464,6.7e-05,2]
[405850881,1771360893978,4651.679,6.566e-05,2]
[405850882,1771360894027,348.331,6.566e-05,2]
[405850883,1771360894049,101.259,6.566e-05,2]
[405850884,1771361045209,-150.0,6.698e-05,2]
[405850898,1771361343208,-300.0,6.599e-05,2]
[405850942,1771361401292,1200.0,6.599e-05,2]
[405850943,1771361401328,300.0,6.599e-05,2]
[405850944,1771361427551,63.32014587,7.37e-05,12]
[405850946,1771361431923,-372.14737638,6.6e-05,2]
[405850947,1771361431933,-1852.51449114,6.6e-05,2]
[405850948,1771361431944,-542.62433888,6.6e-05,2]
[405850949,1771361432033,-1611.81509603,6.6e-05,2]
[405850950,1771361432044,-2073.2599778,6.6e-05,2]
[405850951,1771361432055,-270.818,6.6e-05,2]
[405850952,1771361432067,-523.0,6.6e-05,2]
[405850953,1771361432089,-367.21439034,6.6e-05,2]
[405850976,1771361438224,-424.06072804,6.6e-05,2]
[405850977,1771361438283,-3734.69297777,6.6e-05,2]
[405850978,1771361438293,-207.0,6.6e-05,2]
[405850979,1771361438304,-151.0,6.697e-05,2]
[405850980,1771361438314,-151.0,6.697e-05,2]
[405850981,1771361438324,-150.0,6.698e-05,2]
[405850982,1771361438335,-1000.0,6.699e-05,2]
[405850983,1771361438345,-1000.0,6.699e-05,2]
[405850984,1771361438355,-295.68572213,6.699e-05,2]
[405850985,1771361438365,-500.0,6.699e-05,2]
[405850986,1771361438376,-500.0,6.699e-05,2]
[405850987,1771361438387,-500.0,6.699e-05,2]
[405850988,1771361438398,-500.0,6.699e-05,2]
[405850989,1771361438408,-500.0,6.699e-05,2]
[405850990,1771361438419,-500.0,6.699e-05,2]
[405850991,1771361438430,-377.31851686,6.699e-05,2]
[405850992,1771361438440,-500.0,6.699e-05,2]
[405850993,1771361438450,-500.0,6.699e-05,2]
[405850994,1771361438460,-500.0,6.699e-05,2]
[405850995,1771361438471,-500.0,6.699e-05,2]
[405850996,1771361438481,-397.73133483,6.699e-05,2]
[405850997,1771361438491,-500.0,6.699e-05,2]
[405850998,1771361438501,-500.0,6.699e-05,2]
[405851000,1771361438512,-500.0,6.699e-05,2]
[405851002,1771361438522,-500.0,6.699e-05,2]
[405851004,1771361438532,-500.0,6.699e-05,2]
[405851006,1771361438543,-500.0,6.699e-05,2]
[405851008,1771361438552,-500.0,6.699e-05,2]
[405851010,1771361438562,-500.0,6.699e-05,2]
[405851012,1771361438572,-500.0,6.699e-05,2]
[405851014,1771361438582,-500.0,6.699e-05,2]
[405851016,1771361438592,-500.0,6.699e-05,2]
[405851018,1771361438603,-500.0,6.699e-05,2]
[405851020,1771361438613,-500.0,6.699e-05,2]
[405851023,1771361438624,-500.0,6.699e-05,2]
[405851025,1771361438635,-500.0,6.699e-05,2]
[405851027,1771361438645,-500.0,6.699e-05,2]
[405851029,1771361438656,-500.0,6.699e-05,2]
[405851030,1771361438667,-3900.0,6.7e-05,2]
[405851032,1771361438679,-215.14,6.7e-05,2]
[405851034,1771361438689,-3500000.0,6.7e-05,2]
[405851036,1771361438699,-22800.0,6.7e-05,2]
[405851038,1771361438711,-273.42872893,6.7e-05,2]
[405851040,1771361438720,-3957.28702207,6.7e-05,2]
[405851042,1771361438730,-17720.8538312,6.7e-05,2]
[405851044,1771361438742,-34200.0,6.8e-05,2]
[405851046,1771361438752,-8587.62,6.829e-05,2]
[405851048,1771361438762,-45600.0,6.9e-05,2]
[405851050,1771361438773,-150.0,6.901e-05,2]
[405851052,1771361438784,-150.0,6.901e-05,2]